[Event "5th Sharjah Masters 2022"]
[Site "Sharjah"]
[Date "2022.05.21"]
[Round "1.36"]
[White "Farahat, Ali"]
[Black "Hovhannisyan, Robert"]
[Result "0-1"]
[ECO "C48"]
[WhiteElo "2381"]
[BlackElo "2607"]
[Annotator "TA"]
[PlyCount "134"]
[EventDate "2022.05.21"]
[EventType "swiss"]
[EventCountry "UAE"]
[SourceTitle "playchess.com"]
[Source "ChessBase"]
[SourceQuality "1"]
[TimeControl "5400+30"]

{[%evp 9,134,15,22,17,19,12,26,27,20,10,18,8,14,0,1,-9,0,-20,-22,-20,-14,-1,-10,-34,-20,-25,-29,-21,-18,-35,-30,-61,-58,-70,-68,-74,-76,-78,-61,-77,-75,-85,-83,-77,-77,-88,-62,-63,-56,-51,-60,-77,-77,-77,-77,-80,-80,-80,-80,-80,-83,-83,-39,-45,-51,-81,-81,-81,-81,-85,-88,-91,-45,-45,-45,-45,-45,-53,-44,-225,-225,-197,-29,-29,-29,-45,-45,-145,-8,-8,-8,-8,-8,-145,-154,-29958,-29958,-2704,-8,-7,-8,-8,0,0,0,-8,0,0,0,-29956,-29958,-2384,-1541,-29960,-12500,-29963,-29964,-29965,-29966,-29964,-29963,-29962,-29962,-29960,-29955,-5554,-4944]} 1. e4 {[%emt 0:00:04]} e5 {[%emt 0:00:19]} 2. Nf3 {[%emt 0:00:10]} Nc6 {[%emt 0:00:08]} 3. Bb5 {[%emt 0:00:24]} Nf6 {[%emt 0:00:22]} 4. Nc3 {[%emt 0:00:30]} Bd6 {[%emt 0:00:24]} 5. O-O {[%emt 0:00:05]} O-O {[%emt 0:00:25]} 6. d3 {[%emt 0:00:09] C48: Four Knights: 4 Bb5, replies other than 4...Bb4.} h6 {[%emt 0:00:44]} 7. a3 {[%emt 0:00:52]} Re8 {[%emt 0:01:09]} 8. Be3 {[%emt 0:00:59] White has an edge. is recently more successful than 8.h3.} Bf8 {[%emt 0:08:19]} 9. Bc4 {[%emt 0:04:47]} d6 {[%emt 0:00:53]} 10. h3 {[%emt 0:02:59]} Be6 {[%emt 0:01:59] [#]} 11. Re1 $146 {[%emt 0:03:55]} ({Predecessor:} 11. Bxe6 Rxe6 12. Nd5 Ne7 13. c4 c6 14. Nxf6+ Rxf6 15. d4 exd4 16. Nxd4 Qd7 17. Qc2 {1-0 (35) Nepomniachtchi,I (2776)-Tomashevsky,E (2718) Khanty-Mansiysk 2019}) 11... d5 {[%emt 0:05:12]} 12. exd5 {[%emt 0:00:39]} Nxd5 {[%emt 0:00:09]} 13. Bb5 {[%emt 0:07:54]} Nxc3 {[%emt 0:04:17]} 14. bxc3 {[%emt 0:00:05]} Bd7 {[%emt 0:01:10]} 15. d4 {[%emt 0:16:44]} e4 {[%emt 0:06:34]} 16. Bxc6 {[%emt 0:03:30]} Bxc6 {[%emt 0:00:13]} 17. Ne5 {[%emt 0:00:11]} Ba4 {[%emt 0:05:11]} 18. Qg4 {[%emt 0:10:06][%csl LRe4,LRh6]} f6 {[%emt 0:16:14]} 19. Ng6 {[%emt 0:01:31][%cal Oe3h6]} Bxc2 {[%emt 0:03:41]} 20. Nxf8 {[%emt 0:03:51]} Kxf8 {[%emt 0:00:41]} 21. Bf4 {[%emt 0:01:18]} g5 {[%emt 0:06:10]} 22. Bh2 {[%emt 0:00:34]} Kg7 {[%emt 0:00:56]} 23. h4 {[%emt 0:02:50]} Re7 {[%emt 0:02:48]} 24. Re3 {[%emt 0:01:08]} Qd7 {[%emt 0:01:36]} 25. Qh5 {[%emt 0:04:56]} Qe8 {[%emt 0:02:39]} 26. Qe2 {[%emt 0:05:34]} Bd3 {[%emt 0:01:21]} 27. Qb2 {[%emt 0:00:11]} Qb5 {[%emt 0:06:20]} 28. Qxb5 {[%emt 0:01:49]} Bxb5 {[%emt 0:00:05]} 29. f3 {[%emt 0:00:24]} Bd3 {[%emt 0:05:37]} (29... Bc6 {feels hotter.} 30. hxg5 hxg5 31. fxe4 Bxe4 32. Bxc7 Rxc7 33. Rxe4 Rxc3 34. Re7+ Kg6) 30. Rae1 {[%emt 0:01:29][%cal Oe3d3] Hoping for Rxd3!} Rae8 {[%emt 0:00:23]} 31. hxg5 {[%emt 0:05:30]} hxg5 {[%emt 0:01:40]} 32. fxe4 {[%emt 0:00:47]} Bxe4 {[%emt 0:01:37]} 33. Bxc7 {[%emt 0:04:17]} Rxc7 {[%emt 0:00:47]} 34. Rxe4 {[%emt 0:00:03]} Rxe4 {[%emt 0:04:42]} 35. Rxe4 $17 {[%emt 0:00:03][%mdl 4096] Endgame KR-KR} f5 {[%emt 0:01:10]} 36. Re3 {[%emt 0:03:49]} f4 {[%emt 0:00:42]} 37. Rf3 {[%emt 0:01:20]} Kf6 {[%emt 0:00:32]} 38. g3 {[%emt 0:00:22]} Kf5 {[%emt 0:00:59]} 39. gxf4 {[%emt 0:00:04]} gxf4 {[%emt 0:00:40]} 40. Kf2 {[%emt 0:01:14]} Rh7 {[%emt 0:01:11] Against Rh3} ({Black should play} 40... Ke4 $17 {And now ...Rh7 would win.} 41. Rh3 Rc6) 41. Rd3 $1 $15 {[%emt 0:00:58]} Ke4 {[%emt 0:00:26]} 42. Rd1 {[%emt 0:00:09]} Rh2+ {[%emt 0:02:09]} 43. Kg1 {[%emt 0:00:03]} Rh5 {[%emt 0:00:26]} 44. c4 $2 {[%emt 0:00:32]} (44. Kf2 $15) 44... Ke3 $1 $19 {[%emt 0:00:41] Threatens to win with ...Ke2.} 45. Rb1 {[%emt 0:00:17]} Rh7 {[%emt 0:04:43]} (45... Kxd4 46. Rxb7 Ra5 47. Rf7 $17) (45... b6 $19 46. d5 Ke2 47. Rb2+ Kd3) 46. d5 $11 {[%emt 0:00:36]} b6 {[%emt 0:00:06]} 47. Re1+ {[%emt 0:02:35]} Kd4 {[%emt 0:02:21]} 48. d6 {[%emt 0:00:46]} (48. Rc1 $15) 48... Rh8 {[%emt 0:02:39]} ({Stronger than} 48... Kxc4 49. Rc1+ Kb5 50. Rc7 $15) (48... Rd7 $17 49. Re7 Rxd6 50. Rxa7 Ke3 51. Re7+ Kf3) 49. Re7 {[%emt 0:00:42]} Rd8 {[%emt 0:00:36]} 50. Rxa7 {[%emt 0:00:34]} Rxd6 {[%emt 0:00:05] next ...Ke3 is good for Black.} 51. Rc7 {[%emt 0:01:45]} (51. Kg2 $11) 51... Ke3 $1 $17 {[%emt 0:00:16]} 52. c5 $2 {[%emt 0:01:25]} (52. Rf7 $17) 52... Rd1+ {[%emt 0:00:11]} 53. Kh2 {[%emt 0:00:14]} b5 $2 {[%emt 0:01:18]} ({Black should try} 53... bxc5 $19 54. Re7+ Kf2) 54. c6 $1 $11 {[%emt 0:01:47]} ({Don't go for} 54. Re7+ $2 Kf2 55. Re4 f3 $19) 54... Rd6 {[%emt 0:00:07] Strongly threatening ...f3.} 55. Kg1 {[%emt 0:00:58]} ({Don't blunder} 55. Re7+ $2 Kf2 56. Rh7 Rxc6 $19) 55... Rg6+ {[%emt 0:00:41]} 56. Kf1 {[%emt 0:00:31]} Kf3 {[%emt 0:00:04]} 57. Rc8 {[%emt 0:00:39]} Rh6 {[%emt 0:00:23][%cal Rh6h1]} 58. Ke1 {[%emt 0:00:32]} Rd6 {[%emt 0:00:40]} 59. c7 $2 {[%emt 0:01:01][%mdl 8192]} (59. Rc7 $11) 59... Rd7 {[%emt 0:00:11]} 60. Rb8 {[%emt 0:00:16]} Re7+ {[%emt 0:00:11]} 61. Kd2 {[%emt 0:00:27]} Rxc7 {[%emt 0:01:42] ( -> ...Kf2)} 62. Rxb5 {[%emt 0:00:03] [#]} Ra7 $1 {[%emt 0:00:12]} 63. Ke1 {[%emt 0:00:40]} Rxa3 {[%emt 0:00:14]} 64. Rf5 {[%emt 0:00:03]} Ra1+ {[%emt 0:00:12]} 65. Kd2 {[%emt 0:00:02]} Rf1 {[%emt 0:00:09]} 66. Rf8 {[%emt 0:05:59] [#]} Kg2 $1 {[%emt 0:00:12]} 67. Rg8+ {[%emt 0:00:34]} Kf2 {[%emt 0:00:09] Weighted Error Value: White=0.35/Black=0.32} 0-1

[Event "5th Sharjah Masters 2022"]
[Site "Sharjah"]
[Date "2022.05.21"]
[Round "1.37"]
[White "Aravindh, Chithambaram VR."]
[Black "Aziz, Husain"]
[Result "1-0"]
[ECO "C67"]
[WhiteElo "2606"]
[BlackElo "2379"]
[Annotator "TA"]
[PlyCount "175"]
[EventDate "2022.05.21"]
[EventType "swiss"]
[EventCountry "UAE"]
[SourceTitle "playchess.com"]
[Source "ChessBase"]
[SourceQuality "1"]
[TimeControl "5400+30"]

{[%evp 9,175,25,20,2,-1,0,0,0,11,7,15,0,10,8,8,10,15,9,31,28,21,29,25,14,20,11,20,15,18,16,17,17,20,17,16,16,32,31,59,71,57,62,48,31,45,38,37,0,0,0,0,0,0,0,0,0,0,0,0,0,0,0,112,112,112,112,112,112,112,112,112,112,112,112,112,112,112,112,112,112,112,112,112,112,112,112,112,0,112,112,112,112,112,112,112,0,112,112,112,77,77,0,112,8,112,77,77,0,112,111,112,0,112,112,112,112,112,8,8,8,8,8,8,8,8,8,8,8,51,60,136,8,8,8,8,8,8,8,29970,77,29968,0,8,8,8,8,406,8,28,0,399,399,399,399,392,392,377,377,370,376,376,377,377,356,363,356,377,348]} 1. e4 {[%emt 1:31:00]} e5 {[%emt 1:31:00]} 2. Nf3 {[%emt 0:00:30]} Nc6 {[%emt 0:00:30]} 3. Bb5 {[%emt 0:00:30]} Nf6 {[%emt 0:00:30][%cal Bg8f6,Bf6e4,Be4d6][%mdl 32]} 4. O-O {[%emt 0:00:30]} Nxe4 {[%emt 0:00:30]} 5. Re1 {[%emt 0:00:30]} Nd6 {[%emt 0:00:30]} 6. a4 {[%emt 0:00:30] C67: Ruy Lopez: Berlin Defence: 4 0-0 Nxe4.} Be7 {[%emt 0:00:30]} 7. Nc3 {[%emt 0:00:30] Against e4} O-O {[%emt 0:00:30]} 8. d4 {[%emt 0:00:30] The position is equal.} e4 {[%emt 0:00:30]} 9. Nxe4 {[%emt 0:00:30]} Nxe4 {[%emt 0:00:30]} 10. Rxe4 {[%emt 0:00:30]} d5 {[%emt 0:00:30]} 11. Re1 {[%emt 0:00:30]} Bg4 {[%emt 0:00:30]} 12. Bxc6 {[%emt 0:00:30]} bxc6 {[%emt 0:00:30]} 13. Qd3 {[%emt 0:00:30]} Bxf3 {[%emt 0:00:30]} (13... f6 {is interesting.} 14. Nh4 Re8 15. h3 Bh5) 14. Qxf3 {[%emt 0:00:30] [#]} c5 $146 {[%emt 0:00:30]} ({Predecessor:} 14... Bd6 15. Bf4 Qf6 16. Bxd6 Qxd6 17. Qc3 Rfe8 18. Re5 f6 19. Re3 Rxe3 20. Qxe3 Kf7 {½-½ (47) Dubov,D (2700)-McShane,L (2688) Netanya 2019}) 15. dxc5 {[%emt 0:00:30]} Bxc5 {[%emt 0:00:30]} 16. Be3 {[%emt 0:00:30]} Qd6 {[%emt 0:00:30]} 17. Re2 {[%emt 0:00:30]} Rfe8 {[%emt 0:00:30]} 18. Rae1 {[%emt 0:00:30]} Bxe3 {[%emt 0:00:30]} 19. Rxe3 {[%emt 0:00:30]} Rxe3 {[%emt 0:00:30]} (19... Kf8 {looks sharper.} 20. g3 Rxe3 21. Qxe3 h6) 20. Qxe3 $11 {[%emt 0:00:30][%mdl 4096] Endgame KQR-KQR} h6 {[%emt 0:00:30]} 21. b3 {[%emt 0:00:30]} c5 {[%emt 0:00:30]} 22. g3 {[%emt 0:00:30]} a5 {[%emt 0:00:30]} 23. h4 {[%emt 0:00:30]} Rc8 {[%emt 0:00:30]} 24. Qd2 {[%emt 0:00:30]} Ra8 {[%emt 0:00:30]} 25. Re2 {[%emt 0:00:30]} d4 {[%emt 0:00:30]} 26. Qe1 {[%emt 0:00:30] Hoping for Re8+.} Qc6 {[%emt 0:00:30] Prevents Re8+.} 27. Re4 {[%emt 0:00:30]} Rb8 {[%emt 0:00:30][%cal Od4d3]} 28. Kh2 {[%emt 0:00:30]} (28. Re7 {feels hotter.} Qf3 29. Re4 Rc8 30. Rf4) 28... d3 {[%emt 0:00:30] aiming for ...d2.} 29. cxd3 {[%emt 0:00:30]} Rxb3 {[%emt 0:00:30]} 30. Qxa5 {[%emt 0:00:30]} Rxd3 {[%emt 0:00:30]} 31. Qe1 {[%emt 0:00:30]} Qd5 {[%emt 0:00:30]} 32. Re5 {[%emt 0:00:30]} Qf3 {[%emt 0:00:30]} 33. Re2 {[%emt 0:00:30]} c4 {[%emt 0:00:30]} 34. a5 {[%emt 0:00:30]} c3 {[%emt 0:00:30]} 35. a6 {[%emt 0:00:30]} c2 {[%emt 0:00:30]} (35... Kh7 $11) 36. Rxc2 $16 {[%emt 0:00:30]} Ra3 {[%emt 0:00:30]} 37. Qb1 $36 {[%emt 0:00:30][%cal Rc2c8][%mdl 2048] White is really pushing.} Qf5 {[%emt 0:00:30] Against Rc8+} (37... Qa8 $2 38. Rb2 Rxa6 39. Rb8+ Qxb8 40. Qxb8+ $18) 38. a7 $1 {[%emt 0:00:30]} (38. Qb8+ $6 Kh7 39. Qc8 Qxc8 40. Rxc8 Rxa6 $11) 38... Rxa7 {[%emt 0:00:30]} 39. Qb8+ {[%emt 0:00:30]} Kh7 {[%emt 0:00:30]} 40. Qxa7 {[%emt 0:00:30] White is more active.} Qxc2 {[%emt 0:00:30]} 41. Qxf7 {[%emt 0:00:30] KQ-KQ} Qe4 {[%emt 0:00:30]} 42. Kg1 {[%emt 0:00:30]} Qe1+ {[%emt 0:00:30]} 43. Kg2 {[%emt 0:00:30]} Qe4+ {[%emt 0:00:30]} 44. Qf3 {[%emt 0:00:30]} Qd4 {[%emt 0:00:30]} 45. Qf5+ {[%emt 0:00:30]} Kh8 {[%emt 0:00:30]} 46. Qe6 {[%emt 0:00:30]} Qd2 {[%emt 0:00:30]} 47. Qe4 {[%emt 0:00:30]} (47. h5 {keeps more tension.} Kh7 48. g4 Qb2 49. Qe4+) 47... Kg8 {[%emt 0:00:30]} 48. Qe6+ {[%emt 0:00:30]} Kh8 $1 {[%emt 0:00:30]} 49. Qc8+ {[%emt 0:00:30]} Kh7 {[%emt 0:00:30]} 50. Qf5+ {[%emt 0:00:30]} Kh8 {[%emt 0:00:30]} 51. Qf8+ {[%emt 0:00:30]} Kh7 {[%emt 0:00:30]} 52. Qf5+ {[%emt 0:00:30]} Kh8 $1 {[%emt 0:00:30]} 53. Kh3 {[%emt 0:00:30]} Qd1 {[%emt 0:00:30]} 54. Qf8+ {[%emt 0:00:30]} Kh7 {[%emt 0:00:30]} 55. Qf5+ {[%emt 0:00:30]} Kh8 $1 {[%emt 0:00:30]} 56. f3 {[%emt 0:00:30]} ({Better is} 56. h5 $16) 56... Kg8 {[%emt 0:00:30]} (56... Qf1+ $1 $11 57. Kg4 Qc4+ 58. Kh5 Qe2) 57. Qc8+ {[%emt 0:00:30]} Kh7 {[%emt 0:00:30]} 58. Qf5+ {[%emt 0:00:30]} (58. Qc6 $16) 58... Kh8 {[%emt 0:00:30]} (58... Kg8 $11 {remains equal.}) 59. Qf8+ {[%emt 0:00:30]} Kh7 {[%emt 0:00:30]} 60. Kg4 {[%emt 0:00:30]} (60. h5 $16) 60... Qa4+ {[%emt 0:00:30]} (60... Qd4+ $11 61. Kh3 Qd5) 61. Qf4 {[%emt 0:00:30]} Qd1 {[%emt 0:00:30][%cal Oh6h5]} 62. Qf5+ {[%emt 0:00:30]} Kh8 {[%emt 0:00:30]} 63. Kh5 {[%emt 0:00:30]} ({White should play} 63. Qf8+ $16 Kh7 64. h5) 63... Qd6 $11 {[%emt 0:00:30]} 64. g4 {[%emt 0:00:30][%cal Bg3g4,Bg4g5][%mdl 32]} Qd2 {[%emt 0:00:30]} 65. Qe6 {[%emt 0:00:30]} Qh2 {[%emt 0:00:30]} 66. Kg6 {[%emt 0:00:30][%cal Re6e8]} Qc2+ {[%emt 0:00:30]} 67. Qe4 {[%emt 0:00:30]} Qc8 {[%emt 0:00:30]} 68. g5 {[%emt 0:00:30]} Qg8 {[%emt 0:00:30]} 69. Kh5 {[%emt 0:00:30]} Qf7+ {[%emt 0:00:30]} (69... hxg5 $1 $14 70. hxg5 (70. Kxg5 Qd8+ 71. Kf5 Qf6+ 72. Kg4 Qd6 $16) 70... Qf8) 70. Kg4 {[%emt 0:00:30]} ({White has to play} 70. g6 $1 $16 {[%cal Rg6f7]} Qd5+ 71. Kg4) 70... Qd7+ {[%emt 0:00:30]} 71. Kg3 {[%emt 0:00:30]} hxg5 {[%emt 0:00:30]} 72. hxg5 {[%emt 0:00:30] Threatening mate with g6.} Qd6+ {[%emt 0:00:30]} 73. f4 {[%emt 0:00:30]} Qd1 $2 {[%emt 0:00:30][%mdl 8192]} (73... Qa3+ $11 74. Kg4 g6 75. Qe5+ (75. Qxg6 Qh3+ 76. Kxh3 $11) 75... Kg8 76. Qe8+ (76. Qe6+ Kh7 $16) 76... Kg7 77. Qe5+ Kg8 78. Qb8+ (78. Qe6+ Kh7 $16) 78... Kg7 79. Qe5+ Kg8) 74. Kh4 $2 {[%emt 0:00:30]} (74. g6 $1 Qg1+ 75. Kh3 Qf1+ 76. Qg2 Qa6 77. Kh2 Qa2 78. f5 Qa4 79. Qh1 Qa2+ 80. Qg2) 74... Qg1 $2 {[%emt 0:00:30][%mdl 8192]} (74... Kg8 $16 75. f5 (75. Qe8+ Kh7 $16) 75... Kf8 76. Qa8+ Ke7 77. Qe4+ Kf8 78. Qa8+ Ke7 79. Qe4+ Kf8) 75. Kh5 $2 {[%emt 0:00:30]} (75. g6 $1 {mates} Qh2+ 76. Kg4 Qg1+ 77. Kh3 Qf1+ 78. Qg2 Qa6 79. Kh2 Qa2 80. Kg3 Qa3+ 81. Kg4) 75... Qd1+ {[%emt 0:00:30]} 76. Kg6 {[%emt 0:00:30][%cal Re4e8]} Qd6+ {[%emt 0:00:30]} 77. Kf7 {[%emt 0:00:30] White threatens Qh1+ and mate.} Qc7+ $2 {[%emt 0:00:30][%mdl 8192]} (77... Qd7+ $11 {and Black is okay.} 78. Kf8 Qc8+ 79. Ke7 Qc7+ 80. Ke6 Qc8+ 81. Ke7 Qc7+ 82. Ke6 Qc8+ 83. Ke7) 78. Kf8 $2 {[%emt 0:00:30]} ({Only move:} 78. Qe7 $1 $18 {[%cal Re7c7]} Qc4+ 79. Qe6 (79. Kg6 Qe6+ 80. Qxe6 $11) 79... Qxf4+ 80. Kg6) 78... Qb8+ {[%emt 0:00:30]} 79. Kf7 $2 {[%emt 0:00:30][%mdl 8192]} (79. Ke7 $11 Qc7+ 80. Ke6) 79... Qc7+ $1 $18 {[#]} 80. Qe7 $1 {[%emt 0:00:30] White is winning.} Qc4+ {[%emt 0:01:00] [#]} (80... Qxf4+ {leads to mate.} 81. Kg6) 81. Qe6 $1 {[%emt 0:00:30]} ({Worse is} 81. Kg6 Qe6+ 82. Qxe6 $11) 81... Qxf4+ {[%emt 0:00:30]} 82. Kg6 {[%emt 0:00:30]} Qc4 {[%emt 0:00:30] Inhibits Qc8+.} 83. Qh3+ {[%emt 0:00:30]} Kg8 {[%emt 0:00:30][%csl Gg8][%cal Rc4f7]} 84. Qh7+ {[%emt 0:00:30]} Kf8 {[%emt 0:00:30][%csl Gf8][%cal Rc4f7]} 85. Qxg7+ {[%emt 0:00:30]} Ke8 {[%emt 0:00:30]} 86. Qe5+ {[%emt 0:00:30]} Kd7 {[%emt 0:00:30]} 87. Kf6 {[%emt 0:00:30] Qe7+ would kill now.} Qh4 {[%emt 0:00:30]} 88. Kg7 {[%emt 0:00:30] Weighted Error Value: White=0.16 (very precise) /Black=0.16 (very precise)} 1-0

[Event "5th Sharjah Masters 2022"]
[Site "Sharjah"]
[Date "2022.05.21"]
[Round "1.38"]
[White "Vogt, Lothar"]
[Black "Gupta, Abhijeet"]
[Result "0-1"]
[ECO "B51"]
[WhiteElo "2365"]
[BlackElo "2606"]
[Annotator "TA"]
[PlyCount "93"]
[EventDate "2022.05.21"]
[EventType "swiss"]
[EventCountry "UAE"]
[SourceTitle "playchess.com"]
[Source "ChessBase"]
[SourceQuality "1"]
[TimeControl "5400+30"]

{[%evp 9,93,23,15,13,10,0,2,1,10,12,7,6,16,6,22,8,22,7,6,0,0,0,0,0,5,9,20,31,11,18,20,22,35,46,52,40,78,69,180,177,214,100,175,164,211,215,199,154,283,279,301,297,278,103,113,75,45,46,54,0,0,-113,-104,-202,-183,-186,-171,-232,-240,-237,-212,-226,-157,-149,-150,-320,-314,-403,-382,-512,-512,-1291,-1233,-29982,-29983,-6283]} 1. e4 {[%emt 0:01:57]} c5 {[%emt 0:00:36]} 2. Nf3 {[%emt 0:00:08]} d6 {[%emt 0:00:27]} 3. Bb5+ {[%emt 0:00:44]} Nd7 {[%emt 0:00:15]} 4. c3 {[%emt 0:00:17]} Ngf6 {[%emt 0:00:42]} 5. Bd3 {[%emt 0:00:29]} a6 {[%emt 0:04:13]} 6. a4 {[%emt 0:02:43] B51: Sicilian: Moscow Variation (3 Bb5+) without 3...Bd7.} b6 {[%emt 0:00:49]} 7. O-O {[%emt 0:00:24]} Bb7 {[%emt 0:00:06]} 8. Re1 {[%emt 0:00:20] The position is equal.} e6 {[%emt 0:01:02]} 9. Na3 {[%emt 0:06:44]} Qc7 {[%emt 0:03:01]} 10. Qe2 {[%emt 0:06:41]} Be7 {[%emt 0:02:02]} 11. Bc2 {[%emt 0:00:21]} Rc8 {[%emt 0:04:16]} 12. d3 {[%emt 0:04:22]} O-O {[%emt 0:00:37] [#]} 13. Bg5 $146 {[%emt 0:00:40]} ({Predecessor:} 13. h3 Rfe8 14. Bf4 Bf8 15. Bh2 e5 16. Bb3 g6 17. Nc4 b5 18. axb5 axb5 19. Ne3 {½-½ (72) Kravtsiv,M (2653)-Robson,R (2656) Khanty-Mansiysk 2017}) 13... Rfe8 {[%emt 0:01:53]} 14. Rac1 {[%emt 0:00:42]} h6 {[%emt 0:01:46]} 15. Bd2 {[%emt 0:01:30]} Qb8 {[%emt 0:02:38]} 16. d4 {[%emt 0:05:58]} cxd4 {[%emt 0:01:36]} 17. cxd4 {[%emt 0:01:54]} Rxc2 {[%emt 0:00:49]} 18. Nxc2 {[%emt 0:03:35]} Nxe4 {[%emt 0:01:12]} 19. Bf4 {[%emt 0:01:55]} Qa8 {[%emt 0:02:30]} 20. Ne3 {[%emt 0:00:49]} Ndf6 {[%emt 0:11:00]} 21. Nd2 {[%emt 0:01:41]} Nxd2 {[%emt 0:13:36]} 22. Qxd2 {[%emt 0:00:03]} Nh5 {[%emt 0:07:44]} 23. Bg3 {[%emt 0:01:14]} f5 {[%emt 0:09:02] [#]} (23... Qd8 $14) 24. Qe2 $1 $18 {[%emt 0:04:28]} Nf6 {[%emt 0:04:49]} 25. f3 {[%emt 0:02:54]} (25. Nc4 $18 {and White stays clearly on top.}) 25... Bf8 {[%emt 0:00:25]} (25... Nd5 $16) 26. Rc7 {[%emt 0:11:25]} Qb8 {[%emt 0:04:24]} (26... Bc6 {might work better.} 27. Qc2 Bd5) 27. Rec1 {[%emt 0:01:06]} Qa8 {[%emt 0:10:00]} 28. Qd2 {[%emt 0:08:43]} Be7 {[%emt 0:02:41]} (28... b5 $16 {is a better defense.} 29. Qd3 Rb8) 29. Qb4 {[%emt 0:02:54][%csl LRb6,LRd6]} Bxf3 {[%emt 0:02:52]} 30. gxf3 {[%emt 0:04:13]} Qxf3 {[%emt 0:00:08]} 31. Ng2 {[%emt 0:00:44]} (31. Qb3 $18 {is more deadly.} Nd5 {[#]} 32. R7c3 $1 {[%mdl 512]}) 31... Nd5 $16 {[%emt 0:01:30][%csl LRb4,LRc7] [#]} 32. Rxe7 $1 {[%emt 0:05:33]} Nxb4 {[%emt 0:03:53]} 33. Rxe8+ {[%emt 0:00:13]} Kf7 {[%emt 0:00:02]} 34. Rec8 {[%emt 0:02:20]} ({Stronger than} 34. Bxd6 Kxe8 35. Bxb4 Qg4 $17) ({White should play} 34. Rd8 $14 Nd5 35. Rd7+ (35. Bxd6 g5 $11) 35... Kg8 36. Rxd6 (36. Bxd6 Ne3 $11)) 34... Nd5 $11 {[%emt 0:00:42]} 35. R8c2 {[%emt 0:03:59]} (35. Bxd6 $11 g5 36. R8c2) 35... Qg4 $17 {[%emt 0:00:53][%mdl 1024] Black has strong compensation.} 36. Rd2 {[%emt 0:02:03]} (36. a5 $17 {keeps fighting.}) 36... f4 $19 {[%emt 0:01:00]} 37. Rf1 {[%emt 0:02:53][%cal Rg2f4]} g5 {[%emt 0:00:04] White must now prevent ...Ke7.} 38. Be1 {[%emt 0:01:42]} (38. Kh1 $142) 38... Ke7 {[%emt 0:00:35] Strongly threatening ...f3.} ({Not} 38... Ne3 39. Rff2 $17) 39. Rd3 {[%emt 0:03:31] Prevents f3.} Qf5 {[%emt 0:02:10]} 40. Rdf3 {[%emt 0:00:33]} e5 {[%emt 0:00:44]} 41. dxe5 {[%emt 0:00:16]} dxe5 {[%emt 0:00:03][%cal Bd6e5,Be5e4][%mdl 32]} 42. h3 $2 {[%emt 0:01:27] White does not recover from this.} (42. R3f2 $17) 42... e4 {[%emt 0:00:33]} 43. Rb3 {[%emt 0:01:11]} Qe6 {[%emt 0:00:50]} 44. Kh2 {[%emt 0:00:38]} f3 {[%emt 0:00:30]} 45. Bb4+ {[%emt 0:03:38]} (45. Bf2 $142 fxg2 46. Ra1) 45... Nxb4 {[%emt 0:00:34][%mdl 64] Remove Defender} 46. Rxb4 {[%emt 0:00:02]} Qd6+ {[%emt 0:00:07]} 47. Kg1 {[%emt 0:02:23] Weighted Error Value: White=0.57/Black=0.16 (very precise)} 0-1